bitfinex-derivatives/quotes_ETHF0:USTF0_20240927
["timestamp","ask_amount","ask_price","bid_price","bid_amount"]
[1727475385871,3.9579,2696.9,2696.8,0.3865]
[1727475388180,0.7501,2696.9,2696.8,0.3865]
[1727475388978,0.3794,2696.9,2696.8,0.3865]
[1727475389179,0.7501,2696.9,2696.8,0.3865]
[1727475389783,0.3794,2696.9,2696.8,0.75721]
[1727475389980,0.3794,2696.9,2696.8,2.09721]
[1727475390184,2.2399097,2697.2,2696.9,0.3707]
[1727475390381,0.37067,2697.1,2697.0,0.3958]
[1727475390576,2.6185097,2697.2,2697.0,0.3958]
[1727475390777,0.37067,2697.1,2697.0,0.3958]
[1727475391481,1.53396,2697.2,2697.0,0.76648]
[1727475391784,1.1633,2697.2,2697.0,0.76648]
[1727475391991,0.7616,2697.2,2697.0,0.76648]
[1727475392184,0.3786,2697.2,2697.1,1.34]
[1727475392583,0.74926,2697.2,2697.1,1.34]
[1727475394187,3.2078,2697.3,2697.1,1.71067]
[1727475394488,3.57845,2697.3,2697.1,1.34]
[1727475395378,3.2078,2697.3,2697.1,1.71066]
[1727475396893,3.57844,2697.3,2697.1,1.71066]
[1727475398486,3.2078,2697.3,2697.0,0.3958]
[1727475398682,3.2078,2697.3,2696.8,0.9715809]
[1727475398683,3.2078,2697.3,2696.8,1.34]
[1727475398885,0.37067,2697.1,2696.9,0.37069]
[1727475400599,0.3707,2696.9,2696.8,1.7453]
[1727475400797,0.3707,2696.9,2696.8,1.34]
[1727475401005,0.3707,2696.9,2696.8,6.0195809]
[1727475401299,1.1555,2697.0,2696.8,6.0195809]
[1727475401504,1.52619,2697.0,2696.8,2.6822809]
[1727475404700,1.1555,2697.0,2696.9,0.3707]
[1727475404900,1.52618,2697.0,2696.8,2.6822809]
[1727475405407,1.52618,2697.0,2696.9,0.9715809]
[1727475406805,1.1555,2697.0,2696.9,1.3422809]
[1727475408609,1.1555,2697.0,2696.9,2.55422584]
[1727475410209,1.1555,2697.0,2696.9,1.3422809]
[1727475410708,1.1555,2697.0,2696.9,2.5545529]
[1727475410914,1.1555,2697.0,2696.9,2.55408314]
[1727475411311,1.1555,2697.0,2696.9,3.04180867]
[1727475414406,1.1555,2697.0,2696.9,1.58298594]
[1727475414812,1.52618,2697.0,2696.9,1.58298594]
[1727475415119,1.52618,2697.0,2696.9,3.04072021]
[1727475418525,1.52618,2697.0,2696.9,3.54001581]
[1727475420221,1.52618,2697.0,2696.9,3.54002678]
[1727475420726,1.1555,2697.0,2696.9,3.04072021]
[1727475421521,1.52618,2697.0,2696.9,3.04072021]
[1727475422916,1.52618,2697.0,2696.9,1.58298594]
[1727475423321,1.52618,2697.0,2696.9,3.04105382]
[1727475424621,1.52618,2697.0,2696.9,3.52563389]
[1727475424821,1.1555,2697.0,2696.9,1.58298594]
[1727475425019,1.1555,2697.0,2696.9,3.52563389]
[1727475425841,4.6630097,2697.3,2696.9,4.49493389]
[1727475426126,3.6006,2697.3,2697.2,1.82883411]
[1727475426328,3.2078,2697.3,2697.2,1.58294594]
[1727475426536,3.2078,2697.3,2697.2,3.85018359]
[1727475427929,3.2078,2697.3,2697.2,7.55733831]
[1727475428226,3.2078,2697.3,2697.2,7.55736544]
[1727475428431,2.6053097,2697.5,2697.4,0.37063]
[1727475428628,2.6053097,2697.5,2697.4,1.34263033]
[1727475429833,1.4552097,2697.5,2697.3,2.31200033]
[1727475430034,1.4552097,2697.6,2697.4,1.97835296]
[1727475430228,1.4552097,2697.6,2697.5,0.97180351]
[1727475430727,2.1983097,2697.7,2697.5,1.70932351]
[1727475431724,2.1983097,2697.7,2697.5,0.73752]
[1727475432028,2.1983097,2697.7,2697.5,1.70932351]
[1727475432433,2.1983097,2697.7,2697.5,0.73752]
[1727475432827,2.1983097,2697.7,2697.5,1.70932351]
[1727475433627,2.1983097,2697.7,2697.5,0.73752]
[1727475434726,2.1983097,2697.7,2697.5,1.70932351]
[1727475436032,0.7431,2697.7,2697.5,1.70932351]
[1727475436742,0.3725,2697.7,2697.5,1.70932351]
[1727475437036,0.74309,2697.7,2697.5,1.70932351]
[1727475437735,2.1982997,2697.7,2697.5,0.73752]
[1727475438139,0.74309,2697.7,2697.5,1.70932351]
[1727475442032,0.74309,2697.7,2697.5,0.73752]
[1727475442933,0.74309,2697.7,2697.5,1.70932351]
[1727475443945,0.74309,2697.7,2697.5,0.73752]
[1727475444343,0.3725,2697.7,2697.5,0.73752]
[1727475444540,0.7431,2697.7,2697.5,0.73752]
[1727475445045,0.7431,2697.7,2697.5,1.70932351]
[1727475445245,0.7431,2697.7,2697.5,0.73752]
[1727475453350,0.7431,2697.7,2697.5,1.70932351]
[1727475455050,0.7431,2697.7,2697.6,1.34]
[1727475457348,0.7431,2697.7,2697.5,1.70931351]
[1727475458940,0.37062,2697.5,2697.4,0.97180351]
[1727475459150,0.37062,2697.5,2697.3,1.34244351]
[1727475459360,0.7849,2697.4,2697.3,1.34172087]
[1727475459551,0.7849,2697.4,2697.3,2.55407318]
[1727475459552,0.3952,2697.4,2697.3,2.55407318]
[1727475459850,0.76583,2697.4,2697.3,2.66997202]
[1727475460248,0.76583,2697.4,2697.3,1.21235231]
[1727475460444,0.76583,2697.4,2697.3,2.66997202]
[1727475460844,0.76583,2697.4,2697.3,2.67006172]
[1727475461046,0.76583,2697.4,2697.3,2.18366628]
[1727475461244,0.76583,2697.4,2697.3,2.67006172]
[1727475462645,0.76583,2697.4,2697.3,2.18380738]
[1727475463048,0.76583,2697.4,2697.3,1.21244201]
[1727475463253,0.76583,2697.4,2697.3,2.1838202]
[1727475463555,0.76583,2697.4,2697.3,2.67006172]
[1727475464559,0.76583,2697.4,2697.3,2.18398585]
[1727475464949,0.76583,2697.4,2697.3,2.18400781]
[1727475465652,0.76583,2697.4,2697.3,2.67006172]
[1727475465848,0.76583,2697.4,2697.3,2.67053952]
[1727475466253,0.76583,2697.4,2697.3,2.18474606]
[1727475466458,0.76583,2697.4,2697.3,2.18474851]
[1727475466758,0.76583,2697.4,2697.3,2.67066846]
[1727475470760,0.76583,2697.4,2697.3,2.67141374]
[1727475472865,0.76583,2697.4,2697.3,1.21379403]
[1727475472866,2.2210397,2697.4,2697.3,1.21379403]
[1727475473060,2.2210397,2697.4,2697.3,2.18631838]
[1727475473261,2.2210397,2697.4,2697.3,2.67244821]
[1727475474767,0.76583,2697.4,2697.3,2.67244821]
[1727475475363,0.76583,2697.4,2697.3,1.21379403]
[1727475475660,0.76583,2697.4,2697.3,1.21412492]
[1727475476861,0.76583,2697.4,2697.3,3.15677287]
[1727475478060,0.76583,2697.4,2697.3,1.21412492]
[1727475479677,0.76583,2697.4,2697.3,2.6729032]
[1727475480279,0.76583,2697.4,2697.3,1.21412492]
[1727475481079,0.76583,2697.4,2697.3,3.15677287]
[1727475481276,0.76583,2697.4,2697.3,1.21412492]
[1727475481471,0.76583,2697.4,2697.3,2.67289433]
[1727475482278,0.76583,2697.4,2697.3,1.21412492]
[1727475482770,0.76583,2697.4,2697.3,3.65629258]
[1727475483276,2.2210397,2697.4,2697.3,2.67286845]
[1727475484081,2.2210397,2697.4,2697.3,2.67282312]
[1727475484268,2.2210397,2697.4,2697.3,1.21407959]
[1727475484475,2.2210397,2697.4,2697.3,1.71360083]
[1727475484476,0.76583,2697.4,2697.3,1.71360083]
[1727475484784,0.76583,2697.4,2697.3,1.71360245]
[1727475485170,2.2210397,2697.4,2697.3,3.17235152]
[1727475485475,2.2210397,2697.4,2697.3,3.04341242]
[1727475485668,0.76583,2697.4,2697.3,3.04341242]
[1727475486173,2.2210397,2697.4,2697.3,3.04341242]
[1727475486375,0.76583,2697.4,2697.3,2.08425474]
[1727475487075,0.76583,2697.4,2697.3,1.58471959]
[1727475487272,0.76583,2697.4,2697.3,3.54298264]
[1727475487474,2.2210397,2697.4,2697.3,3.04344751]
[1727475488181,0.76583,2697.4,2697.3,3.04344751]
[1727475488381,0.76583,2697.4,2697.3,2.08427136]
[1727475488973,0.76583,2697.4,2697.3,2.08426963]
[1727475489584,0.76583,2697.4,2697.3,4.02691758]
[1727475489977,0.76583,2697.4,2697.3,2.08426963]
[1727475490481,0.76583,2697.4,2697.3,6.45522294]
[1727475490684,0.76583,2697.4,2697.3,6.45523417]
[1727475490871,0.76583,2697.4,2697.3,5.95568728]
[1727475491075,0.76583,2697.4,2697.3,6.45523417]
[1727475491277,0.76583,2697.4,2697.3,6.45524342]
[1727475491479,0.76583,2697.4,2697.3,2.08429712]
[1727475491683,0.76583,2697.4,2697.3,3.52738192]
[1727475491880,0.3952,2697.4,2697.3,3.52738192]
[1727475492088,0.76583,2697.4,2697.3,3.52738192]
[1727475492475,0.76583,2697.4,2697.3,6.45540125]
[1727475492678,0.76583,2697.4,2697.3,2.08431326]
[1727475492879,0.76583,2697.4,2697.3,1.21409397]
[1727475493085,0.76583,2697.4,2697.3,3.52738192]
[1727475493274,0.76583,2697.4,2697.3,1.58473397]
[1727475493579,0.76583,2697.4,2697.3,4.02697373]
[1727475493785,0.76583,2697.4,2697.3,3.65649688]
[1727475494180,0.76583,2697.4,2697.3,6.0850215]
[1727475494387,0.3952,2697.4,2697.3,4.02713688]
[1727475494587,0.76583,2697.4,2697.3,3.52754507]
[1727475494785,0.76583,2697.4,2697.3,1.58489712]
[1727475495485,0.76583,2697.4,2697.3,6.45592523]
[1727475495879,0.76583,2697.4,2697.3,5.95629252]
[1727475496579,0.76583,2697.4,2697.3,3.52754507]
[1727475497692,0.76583,2697.4,2697.3,6.08537753]
[1727475497883,0.76583,2697.4,2697.3,6.45601753]
[1727475498375,0.76583,2697.4,2697.3,4.02720064]
[1727475498785,0.76583,2697.4,2697.3,4.02721176]
[1727475498981,0.76583,2697.4,2697.3,2.81295464]
[1727475499187,0.76583,2697.4,2697.3,3.54408321]
[1727475499490,2.22472915,2697.4,2697.3,3.04441652]
[1727475499681,2.22472915,2697.4,2697.3,4.02744662]
[1727475500587,2.22472915,2697.4,2697.3,1.58509643]
[1727475500980,2.22472915,2697.4,2697.3,4.02748668]
[1727475501379,0.76583,2697.4,2697.3,4.02748668]
[1727475501581,0.76583,2697.4,2697.3,3.52774438]
[1727475501786,0.76583,2697.4,2697.3,4.02749541]
[1727475502090,2.22472915,2697.4,2697.3,4.02749541]
[1727475502280,0.76583,2697.4,2697.3,4.02749541]
[1727475502587,2.22472915,2697.4,2697.3,6.45669742]
[1727475503681,2.22472915,2697.4,2697.3,6.45731815]
[1727475505587,0.76583,2697.4,2697.3,4.5146702]
[1727475505977,0.3952,2697.4,2697.3,4.01491917]
[1727475506586,0.76583,2697.4,2697.3,4.01491917]
[1727475506884,1.82952915,2697.4,2697.3,5.96129066]
[1727475507791,0.37063,2697.4,2697.3,4.01491917]
[1727475507993,0.37063,2697.4,2697.3,4.5147825]
[1727475508792,0.37063,2697.4,2697.3,6.46105527]
[1727475508793,1.82952915,2697.4,2697.3,6.46105527]
[1727475509591,1.82952915,2697.4,2697.3,6.09041527]
[1727475509793,2.22892915,2697.4,2697.3,6.09041527]
[1727475510690,2.22892915,2697.4,2697.3,6.46105527]
[1727475510993,0.77003,2697.4,2697.3,4.5147825]
[1727475513391,0.77003,2697.4,2697.3,4.1441425]
[1727475513694,0.37064,2697.3,2697.2,2.34705046]
[1727475513989,0.37064,2697.3,2697.2,4.91606506]
[1727475514697,2.22943999,2697.4,2697.2,4.91606506]
[1727475514898,0.77004,2697.4,2697.3,1.21496882]
[1727475515489,8.68481664,2697.4,2697.3,2.67479302]
[1727475515796,8.68481664,2697.4,2697.0,0.97327953]
[1727475515797,0.37067,2697.1,2697.0,0.97327953]
[1727475515990,1.2974,2697.0,2696.9,0.97327953]
[1727475516295,0.37071,2696.8,2696.7,0.97327953]
[1727475516488,0.37074,2696.6,2696.5,0.97327953]
[1727475516688,1.45728802,2696.6,2696.5,0.97327953]
[1727475516883,5.53682802,2696.6,2696.4,1.36407953]
[1727475517087,1.82803802,2696.6,2696.5,0.97238252]
[1727475517295,5.53683802,2696.6,2696.5,0.97238252]
[1727475517596,0.37075,2696.5,2696.4,1.36318252]
[1727475517898,0.37075,2696.6,2696.4,1.36318252]
[1727475518794,4.5478,2696.8,2696.5,1.34]
[1727475518795,5.03580802,2696.8,2696.5,1.34]
[1727475518992,4.66508802,2696.8,2696.6,1.34]
[1727475519300,3.2078,2696.8,2696.7,0.74243]
[1727475519596,1.45728802,2697.1,2696.9,0.3707]
[1727475519793,1.82795802,2697.1,2697.0,0.3769]
[1727475520290,0.37067,2697.1,2697.0,0.3769]
[1727475520687,3.2078,2697.2,2697.0,1.7169]
[1727475520896,3.2078,2697.2,2697.1,0.37067]
[1727475521097,3.2078,2697.2,2697.1,0.75267]
[1727475521297,3.2078,2697.2,2697.1,0.382]
[1727475522092,3.57846,2697.2,2697.1,0.382]
[1727475522795,3.2078,2697.2,2697.1,0.382]
[1727475524293,3.2078,2697.2,2697.1,0.75267]
[1727475525098,3.2078,2697.2,2697.1,0.382]
[1727475528299,3.57846,2697.2,2697.1,0.382]
[1727475540008,7.28646,2697.2,2697.1,0.382]
[1727475540210,0.37067,2697.1,2697.0,0.3769]
[1727475541508,3.2078,2697.2,2697.0,0.74758]
[1727475542009,0.37067,2697.1,2697.0,0.3769]
[1727475544918,0.37067,2697.1,2697.0,1.34928252]
[1727475545216,0.37067,2697.1,2697.0,0.3769]
[1727475545716,0.37067,2697.1,2697.0,1.71996252]
[1727475545903,0.37067,2697.1,2697.0,0.74758]
[1727475546907,0.37067,2697.1,2697.0,1.71996252]
[1727475547819,0.37067,2697.1,2697.0,1.34928252]
[1727475548118,0.37067,2697.1,2697.0,0.3769]
[1727475548919,0.37067,2697.1,2697.0,1.34928252]
[1727475549218,0.37067,2697.1,2697.0,0.3769]
[1727475549416,0.37067,2697.1,2697.0,1.34928252]
[1727475550111,0.37067,2697.1,2697.0,0.3769]
[1727475552412,0.37067,2697.1,2697.0,1.34928252]
[1727475552613,0.37067,2697.1,2697.0,0.97238252]
[1727475552815,0.37068,2697.0,2696.9,0.392]
[1727475553119,0.37068,2697.0,2696.9,1.36438252]
[1727475553618,0.75928,2697.1,2696.9,1.73508252]
[1727475554023,0.75928,2697.1,2696.9,0.7627]
[1727475554320,0.75928,2697.1,2696.9,1.73508252]
[1727475555013,0.37068,2697.0,2696.9,1.36438252]
[1727475555614,0.37068,2697.0,2696.9,0.392]
[1727475557220,0.37068,2697.0,2696.9,1.36438252]
[1727475561221,0.37068,2697.0,2696.9,0.392]
[1727475561523,0.37068,2697.0,2696.9,1.36438252]
[1727475562628,1.82796802,2697.0,2696.9,0.392]
[1727475563329,0.37068,2697.0,2696.9,1.36438252]
[1727475563527,1.82796802,2697.0,2696.9,1.36438252]
[1727475564937,1.82796802,2697.0,2696.9,2.57557536]
[1727475565128,1.82796802,2697.0,2696.9,1.36438252]
[1727475565328,1.82796802,2697.0,2696.9,1.60320116]
[1727475566434,1.82796802,2697.0,2696.9,2.57574145]
[1727475566633,1.82796802,2697.0,2696.9,1.36454029]
[1727475567538,1.82796802,2697.0,2696.9,1.60343678]
[1727475567732,0.37068,2697.0,2696.9,1.60343678]
[1727475567936,1.82796802,2697.0,2696.9,1.60343678]
[1727475568425,1.82796802,2697.0,2696.9,1.36446898]
[1727475569032,1.82796802,2697.0,2696.9,2.57584689]
[1727475569435,0.37068,2697.0,2696.9,1.60337791]
[1727475570240,1.82796802,2697.0,2696.9,1.60337791]
[1727475571038,5.53596802,2697.0,2696.9,1.60337791]
[1727475571244,4.45948,2697.0,2696.9,1.36446691]
[1727475571433,5.91742032,2697.0,2696.9,1.36446691]
[1727475571634,5.91741747,2697.0,2696.9,1.36446691]
[1727475572048,4.45948,2697.0,2696.9,1.36446691]
[1727475572446,5.91741199,2697.0,2696.9,1.36446691]
[1727475572759,4.45948,2697.0,2696.9,0.392]
[1727475573349,4.45948,2697.0,2696.9,1.36446691]
[1727475573742,5.91734557,2697.0,2696.9,1.36446691]
[1727475573947,2.20934557,2697.0,2696.9,1.36446691]
[1727475574151,2.20934557,2697.0,2696.9,2.57630804]
[1727475574444,2.20934557,2697.0,2696.9,1.60384183]
[1727475574649,0.75148,2697.0,2696.9,1.60384183]
[1727475575552,2.20934557,2697.0,2696.9,1.60384183]
[1727475575755,2.20934557,2697.0,2696.9,3.06256537]
[1727475576056,0.75148,2697.0,2696.9,3.06256537]
[1727475577352,2.20934557,2697.0,2696.9,3.06256537]
[1727475577951,0.75148,2697.0,2696.9,3.06256537]
[1727475578452,2.20934557,2697.0,2696.9,3.06256537]
[1727475578756,0.75148,2697.0,2696.9,3.06256537]
[1727475579149,0.75148,2697.0,2696.9,1.36460441]
[1727475579456,1.82884857,2697.0,2696.9,1.36460441]
[1727475579649,1.82884857,2697.0,2696.9,2.57666755]
[1727475579847,1.82884857,2697.0,2696.9,1.60406314]
[1727475580049,1.82884857,2697.0,2696.9,3.06273446]
[1727475580244,1.82884857,2697.0,2696.9,1.60406314]
[1727475580652,1.82884857,2697.0,2696.9,2.57667532]
[1727475580855,1.82884857,2697.0,2696.9,1.60406314]
[1727475581653,1.82884857,2697.0,2696.9,3.06273446]
[1727475585060,1.82884857,2697.0,2696.9,2.57713583]
[1727475585061,0.37068,2697.0,2696.9,2.57713583]
[1727475585451,1.82915537,2697.0,2696.9,3.06300963]
[1727475585661,1.82915537,2697.0,2696.9,1.85067132]
[1727475585854,1.82915537,2697.0,2696.9,3.06298883]
[1727475587954,0.37068,2697.0,2696.9,3.06298883]
[1727475588159,1.82920619,2697.0,2696.9,3.06298883]
[1727475588358,0.37068,2697.0,2696.9,3.06298883]
[1727475590660,0.37068,2697.0,2696.9,3.06314617]
[1727475593761,2.31375019,2697.0,2696.9,3.06314617]
[1727475593957,0.37068,2697.0,2696.9,3.06314617]
[1727475594669,2.31375019,2697.0,2696.9,3.06314617]
[1727475596064,0.37068,2697.0,2696.9,3.06314617]
[1727475598365,0.37068,2697.0,2696.9,3.06356195]
[1727475598863,1.94307019,2697.1,2696.9,1.97557063]
[1727475599165,1.94307019,2697.1,2697.0,2.67294214]
[1727475599372,0.37067,2697.1,2697.0,1.21297283]
[1727475599573,0.37067,2697.1,2697.0,1.61357283]
[1727475600367,1.83005578,2697.1,2697.0,4.05977871]
[1727475600565,1.83005578,2697.1,2697.0,2.11346158]
[1727475600768,1.83005578,2697.1,2697.0,4.0597862]
[1727475601167,2.31374019,2697.1,2697.0,3.07358302]
[1727475601367,0.37067,2697.1,2697.0,1.61357283]
[1727475601561,1.71067,2697.1,2697.0,1.61357283]
[1727475601767,4.58317478,2697.1,2697.0,1.61357283]
[1727475601966,2.63735,2697.1,2697.0,2.58691304]
[1727475602265,4.58317866,2697.1,2697.0,1.61357283]
[1727475602573,4.58316865,2697.1,2697.0,1.61357283]
[1727475602873,2.31648865,2697.1,2697.0,1.61357283]
[1727475603178,2.31647406,2697.1,2697.0,1.61355651]
[1727475603466,2.31647406,2697.1,2697.0,2.58684923]
[1727475603467,0.37067,2697.1,2697.0,2.58684923]
[1727475603868,0.37067,2697.1,2697.0,2.58684533]
[1727475604364,2.31650828,2697.1,2697.0,3.07347102]
[1727475607775,0.37067,2697.1,2697.0,2.58681481]
[1727475607966,2.31644832,2697.1,2697.0,4.04676013]
[1727475608165,2.31644832,2697.1,2697.0,2.58683912]
[1727475608166,2.316461,2697.1,2697.0,2.58683912]
[1727475608371,2.316461,2697.1,2697.0,3.07347102]
[1727475608974,2.316461,2697.1,2697.0,3.07343222]
[1727475609571,2.316461,2697.1,2697.0,1.61351121]
[1727475610470,2.316461,2697.1,2697.0,3.07343222]
[1727475611180,0.37067,2697.1,2697.0,1.61351121]
[1727475612476,1.82993697,2697.1,2697.0,1.61351121]
[1727475612682,0.37067,2697.1,2697.0,1.61351121]
[1727475613588,0.37067,2697.1,2697.0,3.07326742]
[1727475613873,0.37067,2697.1,2697.0,1.61339115]
[1727475614077,2.316461,2697.1,2697.0,3.07314965]
[1727475614279,0.37067,2697.1,2697.0,3.07314965]
[1727475614477,2.316461,2697.1,2697.0,3.07314965]
[1727475614774,0.37067,2697.1,2697.0,3.07314965]
[1727475615774,2.316461,2697.1,2697.0,3.07314965]
[1727475616867,0.37067,2697.1,2697.0,1.61339115]
[1727475617175,0.37067,2697.1,2697.0,3.07289381]
[1727475617875,2.316461,2697.1,2697.0,3.07289381]
[1727475618074,5.153591,2697.2,2697.0,3.07289381]
[1727475618278,3.2078,2697.2,2697.1,6.84099768]
[1727475618472,1.45958797,2697.4,2697.3,0.37064]
[1727475618673,4.66738797,2697.5,2697.3,6.07930388]
[1727475618870,4.66738797,2697.5,2697.4,2.95481537]
[1727475619277,4.66738797,2697.5,2697.4,8.11968783]
[1727475619475,4.66738797,2697.5,2697.4,8.11912315]
[1727475620074,3.2078,2697.5,2697.4,2.95425069]
[1727475620274,3.2078,2697.5,2697.4,4.78198921]
[1727475620878,3.2078,2697.5,2697.4,3.32488069]
[1727475621076,3.2078,2697.5,2697.4,2.95425069]
[1727475621278,3.2078,2697.5,2697.4,4.41061801]
[1727475621975,3.2078,2697.5,2697.4,2.95425069]
[1727475622981,0.3706,2697.6,2697.4,2.95425069]
[1727475623180,0.3706,2697.6,2697.5,3.03319463]
[1727475623479,0.3706,2697.6,2697.5,3.43162273]
[1727475624082,0.3706,2697.6,2697.5,1.97587879]
[1727475624284,0.3706,2697.6,2697.5,2.94589344]
[1727475624986,0.3706,2697.6,2697.5,3.43162273]
[1727475625284,0.3706,2697.6,2697.5,1.97587879]
[1727475625577,4.66738797,2698.0,2697.6,0.3706]
[1727475625784,4.66738797,2698.0,2697.6,2.68023508]
[1727475625785,0.37058,2697.8,2697.6,2.68023508]
[1727475626179,0.37058,2697.8,2697.6,1.34]
[1727475626573,0.37058,2697.8,2697.6,1.7106]
[1727475627580,4.66738797,2698.0,2697.7,1.34]
[1727475627783,3.2078,2698.0,2697.9,1.71056]
[1727475628284,3.2078,2698.3,2697.9,14.6521]
[1727475628582,3.2078,2698.3,2698.2,1.34]
[1727475628882,3.2078,2698.3,2698.2,5.41692]
[1727475629087,0.37049,2698.5,2698.2,5.41692]
[1727475629389,0.37049,2698.4,2698.3,0.7638]
[1727475629687,3.57829,2698.5,2698.3,1.1627]
[1727475629879,0.37047,2698.6,2698.3,1.1627]
[1727475630478,3.2078,2698.5,2698.4,0.37049]
[1727475630775,3.57824,2698.8,2698.5,0.37048]
[1727475630982,3.57824,2698.8,2698.7,1.34]
[1727475630983,3.2078,2698.8,2698.7,1.34]
[1727475631292,3.9696,2699.1,2698.7,1.34]
[1727475631478,0.37042,2699.0,2698.8,0.7842]
[1727475631675,4.34,2699.1,2698.8,0.7842]
[1727475632081,4.34,2699.1,2698.8,1.15464]
[1727475632376,4.34,2699.1,2698.8,2.49464]
[1727475632783,4.34,2699.1,2698.8,2.1242]
[1727475633492,0.37041,2699.0,2698.8,2.1242]
[1727475638792,3.9696,2699.1,2698.8,2.1242]
[1727475638986,0.37042,2699.0,2698.8,2.1242]
[1727475639391,3.9696,2699.1,2698.8,2.1242]
[1727475639586,0.37042,2699.0,2698.8,2.1242]
[1727475640283,0.37041,2699.0,2698.8,2.1242]
[1727475643095,0.37042,2698.9,2698.8,0.7842]
[1727475643890,0.37042,2698.9,2698.6,0.37046]
[1727475644191,0.37049,2698.5,2698.3,0.37051]
[1727475644395,0.37049,2698.5,2698.2,1.71051]
[1727475645088,0.37049,2698.4,2698.2,1.71051]
[1727475651696,0.37049,2698.4,2698.2,1.34]
[1727475652000,0.37049,2698.4,2698.2,1.71051]
[1727475654797,0.37049,2698.5,2698.3,0.37051]
[1727475655107,0.37049,2698.4,2698.3,0.3705]
[1727475656501,0.7891,2698.6,2698.3,0.3705]
[1727475656502,0.37049,2698.5,2698.3,0.3705]
[1727475656698,0.7891,2698.6,2698.3,0.3705]
[1727475656699,0.37049,2698.4,2698.3,0.3705]
[1727475658906,0.37049,2698.5,2698.3,0.3705]
[1727475659698,0.37049,2698.5,2698.4,0.3924]
[1727475659898,3.6116,2698.7,2698.4,5.438]
[1727475659899,3.2078,2698.7,2698.4,5.438]
[1727475660101,3.57826,2698.7,2698.5,1.14177]
[1727475660305,0.37046,2698.6,2698.5,1.14178]
[1727475660499,0.37046,2698.6,2698.5,0.7713]
[1727475660900,0.37046,2698.6,2698.5,1.14178]
[1727475661102,2.09386,2699.0,2698.5,1.14178]
[1727475661299,2.09386,2699.0,2698.5,0.7713]
[1727475661500,0.37046,2698.7,2698.5,1.14177]
[1727475662705,2.09386,2699.0,2698.5,0.7713]
[1727475662706,0.37046,2698.6,2698.5,0.7713]
[1727475663299,2.09386,2699.0,2698.5,0.7713]
[1727475663504,0.37046,2698.6,2698.5,0.7713]
[1727475665404,0.37046,2698.6,2698.5,1.14178]
[1727475665601,0.37046,2698.6,2698.5,0.7713]
[1727475667599,0.37046,2698.6,2698.5,1.14178]
[1727475671106,0.37046,2698.6,2698.5,0.7713]
[1727475671514,0.37046,2698.6,2698.5,1.74093508]
[1727475672409,0.37046,2698.6,2698.5,3.43392281]
[1727475672618,0.37046,2698.6,2698.5,1.97817887]
[1727475673115,0.37046,2698.6,2698.5,1.73962945]
[1727475673313,0.37046,2698.6,2698.5,1.9789043]
[1727475673812,1.45958797,2698.8,2698.5,6.0549743]
[1727475674021,2.38567797,2698.9,2698.6,0.96887383]
[1727475674207,0.37044,2698.8,2698.7,0.96887383]
[1727475674408,0.37044,2698.8,2698.7,1.33717383]
[1727475675114,1.83002797,2698.8,2698.7,0.3683]
[1727475675310,1.83002797,2698.8,2698.7,1.33717383]
[1727475675717,1.83002797,2698.8,2698.7,0.3683]
[1727475676315,0.37044,2698.8,2698.7,1.33717383]
[1727475676908,1.29654,2698.8,2698.7,0.96887383]
[1727475677113,1.29654,2698.8,2698.6,0.96887383]
[1727475677114,0.37045,2698.7,2698.6,0.96887383]
[1727475677416,0.37046,2698.6,2698.5,0.3783]
[1727475677607,0.37046,2698.6,2698.5,1.58638212]
[1727475677810,0.37046,2698.6,2698.5,3.04212606]
[1727475678520,0.37046,2698.6,2698.5,1.3475274]
[1727475678821,0.37046,2698.6,2698.5,2.55555547]
[1727475679220,1.83004797,2698.6,2698.5,1.3475274]
[1727475680715,0.37046,2698.6,2698.5,2.55565825]
[1727475681316,0.37046,2698.6,2698.5,1.58643085]
[1727475683026,0.37046,2698.6,2698.5,3.04217479]
[1727475683219,0.37046,2698.6,2698.5,1.58643085]
[1727475683827,0.37046,2698.6,2698.5,3.04217479]
[1727475684524,1.83004797,2698.6,2698.5,1.58643085]
[1727475684823,0.37046,2698.6,2698.5,3.04217479]
[1727475685326,1.83004797,2698.6,2698.5,3.04217479]
[1727475685519,0.37046,2698.6,2698.5,1.58643085]
[1727475685924,0.37046,2698.6,2698.5,3.53104551]
[1727475687416,0.37046,2698.6,2698.5,1.58643085]
[1727475687822,0.37046,2698.6,2698.5,3.53104551]
[1727475688324,0.37046,2698.6,2698.5,1.58643085]
[1727475688524,0.37046,2698.6,2698.5,3.53104551]
[1727475689320,0.37046,2698.6,2698.5,5.94831425]
[1727475690627,0.37046,2698.6,2698.5,5.94888639]
[1727475691028,1.45958797,2698.8,2698.5,7.28888639]
[1727475691224,1.83001797,2698.9,2698.8,0.37044]
[1727475691427,1.45958797,2699.0,2698.9,0.37042]
[1727475691731,1.82997797,2699.2,2699.0,0.37041]
[1727475692034,1.82997797,2699.2,2699.1,2.6620066]
[1727475692436,0.37039,2699.2,2699.1,2.6620066]
[1727475693340,0.37039,2699.2,2699.1,1.20813301]
[1727475693537,0.37039,2699.2,2699.1,1.33888458]
[1727475693538,1.45958797,2699.2,2699.1,1.33888458]
[1727475693741,1.45958797,2699.2,2699.1,0.37039]
[1727475694040,1.45958797,2699.2,2699.1,1.33888458]
[1727475694437,1.45958797,2699.3,2699.2,0.37038]
[1727475694634,1.45958797,2699.3,2699.2,2.48918]
[1727475695241,1.82995797,2699.3,2699.2,2.1188]
[1727475696053,1.45958797,2699.3,2699.2,2.1188]
[1727475697357,1.82994797,2699.4,2699.2,2.1188]
[1727475698155,1.82994797,2699.4,2699.2,2.48918]
[1727475698355,0.37037,2699.3,2699.2,2.1188]
[1727475698753,0.37037,2699.3,2699.2,0.7788]
[1727475699060,0.76487,2699.3,2699.2,0.7788]
[1727475700256,0.3704,2699.1,2699.0,0.96849458]
[1727475700460,0.3704,2699.1,2698.9,3.2078]
[1727475700461,0.3704,2699.1,2698.9,4.54671458]
[1727475700661,0.37041,2699.0,2698.9,4.17629458]
[1727475700954,0.37041,2699.0,2698.9,4.41618306]
[1727475701157,0.37041,2699.0,2698.9,5.38381994]
[1727475701350,0.37041,2699.0,2698.9,5.38376077]
[1727475701550,0.37041,2699.0,2698.9,5.38375468]
[1727475701752,0.37041,2699.0,2698.9,5.38376374]